[Event "Marienbad A1-GM 2024"]
[Site "Marianske Lazne"]
[Date "2024.01.18"]
[Round "7.4"]
[White "Stefansson, Hannes"]
[Black "Pang, Tao"]
[Result "1/2-1/2"]
[ECO "C15"]
[WhiteElo "2498"]
[BlackElo "2430"]
[Annotator "TA"]
[PlyCount "128"]
[EventDate "2024.01.10"]
[EventType "tourn"]
[EventCountry "CZE"]
[SourceTitle "playchess.com"]
[Source "ChessBase"]
[SourceQuality "1"]
[TimeControl "40/5400+30:1800+30"]

{[%evp 15,128,0,0,0,0,-7,0,0,-7,-29,-30,-23,-25,-39,0,-3,0,0,9,0,4,-29,-33,-19,-38,-47,0,-13,0,-47,-47,-43,-36,-36,-43,-40,-36,-43,-36,-69,-69,-62,0,0,0,0,0,0,0,0,0,0,0,5,11,0,1,4,4,4,6,3,12,9,9,0,172,112,106,80,79,74,74,73,67,49,38,8,118,124,129,129,135,135,135,135,135,135,135,135,135,135,135,135,135,135,135,135,135,135,135,135,135,135,135,135,135,135,135,135,135,135,135,79,79]} 1. e4 {[%emt 0:00:08]} e6 {[%emt 0:00:05]} 2. d4 {[%emt 0:00:23]} d5 {[%emt 0:00:06]} 3. Nc3 {[%emt 0:00:16]} Bb4 {[%emt 0:00:10]} 4. Nge2 {[%emt 0:00:28]} dxe4 {[%emt 0:00:14]} 5. a3 {[%emt 0:00:25]} Bxc3+ {[%emt 0:00:12]} 6. Nxc3 {[%emt 0:00:17]} Nc6 {[%emt 0:00:22]} 7. Bf4 {[%emt 0:01:47]} Nf6 {[%emt 0:03:23] 7...Nf6 is better than 7...Nge7.} 8. Bb5 {[%emt 0:00:45]} Nd5 {[%emt 0:02:20]} 9. Bxc6+ {[%emt 0:03:43] C15: French: 3 Nc3 Bb4: Unusual White 4th moves.} bxc6 {[%emt 0:00:10]} 10. Bd2 {[%emt 0:00:30]} Nxc3 {[%emt 0:02:10]} 11. Bxc3 {[%emt 0:00:06] The position is equal.} Qg5 {[%emt 0:16:54] [#]} 12. Qe2 $146 {[%emt 0:02:13]} ({Predecessor:} 12. O-O O-O 13. Qe2 f5 14. f3 a5 15. Qc4 Kh8 16. Qxc6 Rb8 17. Qxc7 Ba6 18. f4 {1-0 O'Carroll,O (1737)-Skarbarchuk,T (2010) Wch U18 Girls 2023 (10)}) 12... Qxg2 {[%emt 0:05:48]} 13. O-O-O {[%emt 0:00:28]} Qf3 {[%emt 0:01:19]} 14. Qd2 {[%emt 0:00:27]} f6 {[%emt 0:04:46]} 15. Rhg1 {[%emt 0:00:51]} Rg8 {[%emt 0:00:45]} (15... O-O {keeps more tension.} 16. Rg3 Qh5 17. Qf4 Rf7) 16. Rg3 {[%emt 0:07:16]} Qf5 {[%emt 0:00:19]} 17. Ba5 {[%emt 0:09:19]} Kd7 {[%emt 0:04:18]} 18. Bb4 {[%emt 0:12:00]} a5 {[%emt 0:05:53]} 19. Bc5 {[%emt 0:00:16]} Ba6 {[%emt 0:01:11]} 20. a4 {[%emt 0:01:49]} Qh5 {[%emt 0:04:51]} (20... g5 $15 {is more appropriate.}) 21. Qf4 {[%emt 0:03:23]} Qf5 {[%emt 0:09:54]} (21... Qxh2 $2 22. Rxg7+ (22. Qxe4 Rae8 $11) 22... Rxg7 23. Qxh2 $18) (21... f5 {seems wilder.} 22. Rdg1 g6 23. h4 Rad8) 22. Qd2 {[%emt 0:04:15]} g5 {[%emt 0:02:14]} 23. Re1 {[%emt 0:02:13]} Qf4 {[%emt 0:02:03]} 24. Rh3 {[%emt 0:05:45]} Qxd2+ {[%emt 0:03:10]} 25. Kxd2 {[%emt 0:00:05] [#]} h5 {[%emt 0:02:00][%cal Bh7h5,Bh5h4][%mdl 32]} 26. Rxe4 {[%emt 0:00:43]} Bf1 {[%emt 0:01:12]} 27. Rg3 {[%emt 0:01:50]} h4 {[%emt 0:03:40]} 28. Rg1 {[%emt 0:00:13]} Bc4 {[%emt 0:01:16]} (28... Bh3 $1 $15) 29. Reg4 $11 {[%emt 0:04:05]} Bd5 {[%emt 0:06:14] Threatens to win with ...Bf3.} 30. Ke3 {[%emt 0:00:18] Wards off Bf3} h3 {[%emt 0:01:24]} 31. R1g3 {[%emt 0:01:51]} Rh8 {[%emt 0:10:33]} 32. f4 {[%emt 0:00:55]} Rag8 {[%emt 0:00:28][%cal Od5e4]} 33. fxg5 {[%emt 0:01:28]} f5 {[%emt 0:00:07]} 34. Rf4 {[%emt 0:00:05]} Rg6 {[%emt 0:00:23]} 35. b4 {[%emt 0:01:08]} axb4 {[%emt 0:00:03]} 36. Bxb4 {[%emt 0:00:05]} c5 {[%emt 0:00:31]} 37. Bxc5 {[%emt 0:00:44]} Rh5 {[%emt 0:01:25]} 38. a5 {[%emt 0:00:18][%cal Ba4a5,Ba5a6,Ba6a7][%mdl 32]} Rgxg5 {[%emt 0:00:10]} 39. Rxg5 {[%emt 0:00:19]} Rxg5 {[%emt 0:00:01][%mdl 4096] Endgame KRB-KRB} 40. Rh4 {[%emt 0:00:41][%cal Oa5a6]} Bg2 $2 {[%emt 0:00:55] [#]} (40... Rg2 $11 {and Black stays safe.}) 41. Rh7+ {[%emt 0:32:10]} (41. a6 $1 $18) 41... Kc6 $16 {[%emt 0:30:53][%cal Oe6e5]} 42. a6 {[%emt 0:00:41]} e5 {[%emt 0:03:19]} 43. a7 {[%emt 0:14:52] White is more active.} Rg8 {[%emt 0:03:28] Against a8Q+} 44. Rf7 {[%emt 0:03:21]} f4+ {[%emt 0:00:00]} 45. Kf2 {[%emt 0:00:00]} (45. Kd3 $5 {[%cal Rf7f6]} Rd8 46. c4 $16) 45... Bd5 {[%emt 0:00:00]} 46. Rf5 {[%emt 0:00:00]} (46. Rg7 $5 {[%cal Rg7g8]} Ra8 47. Rg6+ Kb5 48. Rg5 $14) 46... exd4 {[%emt 0:00:00]} (46... Kb5 $11) 47. Bxd4 {[%emt 0:00:00]} Kd6 {[%emt 0:00:00]} 48. Ke1 {[%emt 0:00:00]} ({But not} 48. Rxf4 $6 Rg2+ 49. Ke1 Rxc2 $14) 48... c5 {[%emt 0:00:00]} 49. Bf2 {[%emt 0:00:00]} Ra8 {[%emt 0:00:00] [#]} 50. c4 $1 {[%emt 0:00:00]} Bxc4 {[%emt 0:00:00]} 51. Bxc5+ {[%emt 0:00:00]} Kc6 {[%emt 0:00:00]} 52. Bd4 {[%emt 0:00:00] Threatening mate with Rc5+.} Re8+ {[%emt 0:00:00]} 53. Kd2 {[%emt 0:00:00] Rc5+ would kill now.} Bd5 {[%emt 0:00:00]} 54. Rxf4 {[%emt 0:00:00]} Kb7 {[%emt 0:00:00]} 55. Rf5 {[%emt 0:00:00]} Bg2 {[%emt 0:00:00]} 56. Rf7+ {[%emt 0:00:00]} Ka8 {[%emt 0:00:00]} 57. Kc3 {[%emt 0:00:00]} Rd8 {[%emt 0:00:00]} 58. Rh7 {[%emt 0:00:00]} Rc8+ {[%emt 0:00:00]} 59. Kb4 {[%emt 0:00:00]} Bf1 {[%emt 0:00:00] And now ...Rc4+ would win.} 60. Rd7 {[%emt 0:00:00]} Rc4+ {[%emt 0:00:00]} 61. Ka5 {[%emt 0:00:00] White wants to mate with Rd8+.} Rc8 {[%emt 0:00:00] Against Rd8} 62. Rf7 {[%emt 0:00:00]} Bg2 {[%emt 0:00:00]} 63. Rf6 {[%emt 0:00:41]} Bh1 {[%emt 0:00:00]} 64. Kb6 {[%emt 0:04:34]} (64. Rh6 $142) 64... Rc6+ {[%emt 0:00:00] Weighted Error Value: White=0.07 (flawless) /Black=0.12 (very precise)} 1/2-1/2

[Event "Marienbad A1-GM 2024"]
[Site "Marianske Lazne"]
[Date "2024.01.18"]
[Round "7.5"]
[White "Samani, Yamac"]
[Black "Neuman, Petr"]
[Result "1/2-1/2"]
[ECO "B31"]
[WhiteElo "2380"]
[BlackElo "2398"]
[Annotator "TA"]
[PlyCount "34"]
[EventDate "2024.01.10"]
[EventType "tourn"]
[EventCountry "CZE"]
[SourceTitle "playchess.com"]
[Source "ChessBase"]
[SourceQuality "1"]
[TimeControl "40/5400+30:1800+30"]

{[%evp 12,34,25,15,28,22,22,21,21,13,33,16,10,17,25,21,28,27,31,18,14,13,22,29,26]} 1. e4 {[%emt 0:07:01]} c5 {[%emt 0:00:07]} 2. Nf3 {[%emt 0:00:54]} Nc6 {[%emt 0:00:05]} 3. Bb5 {[%emt 0:00:07]} g6 {[%emt 0:00:18]} 4. O-O {[%emt 0:00:28]} Bg7 {[%emt 0:00:04]} 5. Re1 {[%emt 0:00:25]} Nf6 {[%emt 0:00:32]} 6. Bxc6 {[%emt 0:00:25]} dxc6 {[%emt 0:00:35]} 7. d3 {[%emt 0:00:31]} Nd7 {[%emt 0:10:57][%cal Bf6d7,Bd7f8,Bf8e6][%mdl 32] B31: Sicilian: 2...Nc6 3 Bb5 g6.} 8. a4 {[%emt 0:00:37]} a5 {[%emt 0:00:35] [#]} 9. e5 $146 {[%emt 0:07:13]} ({Predecessor:} 9. Na3 O-O 10. c3 e5 11. Bg5 Qc7 12. Qb3 b6 13. Nc4 Ba6 14. Bh4 Bxc4 15. Qxc4 {½-½ Shevchenko,K (2549)-Fawzy,A (2439) Wch U18 Porto Carras 2018 (3)}) 9... Nf8 {[%emt 0:03:34] The position is equal.} 10. Nbd2 {[%emt 0:02:18]} Ne6 {[%emt 0:02:05]} 11. b3 {[%emt 0:00:24]} O-O {[%emt 0:03:58]} 12. Bb2 {[%emt 0:00:15]} f5 {[%emt 0:02:06]} 13. exf6 {[%emt 0:00:40]} exf6 {[%emt 0:00:05]} 14. Qe2 {[%emt 0:08:39]} Re8 {[%emt 0:03:15]} 15. Qf1 {[%emt 0:12:01]} b6 {[%emt 0:01:46]} 16. Re3 {[%emt 0:01:52]} Ra7 {[%emt 0:01:15]} 17. Rae1 {[%emt 0:00:56]} Rae7 {[%emt 0:00:07] A rather calm draw.   Weighted Error Value: White=0.05 (flawless) /Black=0.03 (flawless)} 1/2-1/2

[Event "Marienbad A1-GM 2024"]
[Site "Marianske Lazne"]
[Date "2024.01.19"]
[Round "8.1"]
[White "Kusa, Jakub"]
[Black "Neuman, Petr"]
[Result "1/2-1/2"]
[ECO "A49"]
[WhiteElo "2350"]
[BlackElo "2398"]
[Annotator "RC"]
[PlyCount "27"]
[EventDate "2024.01.10"]
[EventType "tourn"]
[EventCountry "CZE"]
[SourceTitle "playchess.com"]
[Source "ChessBase"]
[SourceQuality "1"]
[TimeControl "40/5400+30:1800+30"]

1. d4 {[%emt 0:00:04]} Nf6 {[%emt 0:00:08]} 2. Nf3 {[%emt 0:00:20]} g6 {[%emt 0:00:46]} 3. g3 {[%emt 0:00:40]} d5 {[%emt 0:00:27]} 4. Bg2 {[%emt 0:00:27]} Bg7 {[%emt 0:00:05]} 5. c4 {[%emt 0:00:52]} c6 {[%emt 0:00:05]} 6. cxd5 {[%emt 0:02:20]} cxd5 {[%emt 0:02:53]} 7. Nc3 {[%emt 0:00:49]} Ne4 {[%emt 0:01:32]} 8. Nxe4 {[%emt 0:07:30]} dxe4 {[%emt 0:06:11]} 9. Ne5 {[%emt 0:00:06]} Bxe5 10. dxe5 {[%emt 0:00:08]} Qxd1+ {[%emt 0:17:09]} 11. Kxd1 {[%emt 0:00:21]} Bf5 {[%emt 0:00:07]} 12. g4 {[%emt 0:10:25]} Bxg4 {[%emt 0:03:16]} 13. Bxe4 {[%emt 0:00:05]} Nc6 {[%emt 0:00:34]} 14. Bxc6+ {[%emt 0:00:25]} 1/2-1/2

[Event "Marienbad A1-GM 2024"]
[Site "Marianske Lazne"]
[Date "2024.01.19"]
[Round "8.2"]
[White "Pang, Tao"]
[Black "Samani, Yamac"]
[Result "1-0"]
[ECO "A18"]
[WhiteElo "2430"]
[BlackElo "2380"]
[Annotator "RC"]
[PlyCount "95"]
[EventDate "2024.01.10"]
[EventType "tourn"]
[EventCountry "CZE"]
[SourceTitle "playchess.com"]
[Source "ChessBase"]
[SourceQuality "1"]
[TimeControl "40/5400+30:1800+30"]

1. c4 {[%emt 0:00:02]} Nf6 {[%emt 0:06:27]} 2. Nc3 {[%emt 0:00:22]} e6 {[%emt 0:00:06]} 3. e4 {[%emt 0:01:04]} d5 {[%emt 0:00:19]} 4. cxd5 {[%emt 0:00:25]} exd5 {[%emt 0:00:07]} 5. e5 {[%emt 0:00:05]} d4 {[%emt 0:00:41]} 6. exf6 {[%emt 0:00:09]} dxc3 {[%emt 0:00:14]} 7. Bb5+ {[%emt 0:02:29]} c6 {[%emt 0:00:49]} 8. Qe2+ {[%emt 0:00:11]} Be6 {[%emt 0:00:28]} 9. Bc4 {[%emt 0:00:03]} Qxf6 {[%emt 0:01:53]} 10. dxc3 {[%emt 0:01:03]} Bc5 {[%emt 0:01:21]} 11. Nf3 {[%emt 0:02:50]} O-O {[%emt 0:02:53]} 12. Bxe6 {[%emt 0:00:13]} Qxe6 {[%emt 0:02:50]} 13. Qxe6 {[%emt 0:00:09]} fxe6 {[%emt 0:00:05]} 14. O-O {[%emt 0:00:39]} Nd7 {[%emt 0:02:34]} 15. Re1 {[%emt 0:01:09]} e5 {[%emt 0:11:00]} 16. Be3 {[%emt 0:02:29]} Bxe3 {[%emt 0:18:47]} 17. Rxe3 {[%emt 0:00:08]} Rae8 {[%emt 0:04:13]} 18. Rae1 {[%emt 0:06:35]} h6 19. h3 Rf5 {[%emt 0:07:32]} 20. g4 {[%emt 0:07:52]} Rf4 {[%emt 0:02:21]} 21. Nxe5 {[%emt 0:00:11]} Nxe5 {[%emt 0:00:51]} 22. Rxe5 {[%emt 0:00:04]} Ref8 {[%emt 0:02:29]} 23. R1e2 {[%emt 0:00:14]} R8f7 {[%emt 0:01:09]} 24. Kg2 {[%emt 0:01:31]} Kh7 {[%emt 0:06:58]} 25. R5e3 {[%emt 0:02:41]} a6 {[%emt 0:03:59]} 26. f3 {[%emt 0:00:49]} g5 {[%emt 0:03:19]} 27. Re7 {[%emt 0:01:36]} Kg7 {[%emt 0:04:14]} 28. Rxf7+ {[%emt 0:00:09]} Rxf7 {[%emt 0:00:25]} 29. Rd2 {[%emt 0:00:34]} Re7 {[%emt 0:03:21]} 30. Kf2 {[%emt 0:00:08]} Kf6 {[%emt 0:02:30]} 31. Rd6+ {[%emt 0:00:41]} Kg7 {[%emt 0:00:06]} 32. b4 {[%emt 0:13:30]} Kh7 {[%emt 0:03:46]} 33. a4 {[%emt 0:00:57]} Kg7 {[%emt 0:00:56]} 34. a5 {[%emt 0:00:06]} Kh7 {[%emt 0:00:28]} 35. Kg3 {[%emt 0:02:59]} Rf7 {[%emt 0:02:50]} 36. Rd3 {[%emt 0:01:04]} h5 {[%emt 0:02:02]} 37. Rd6 {[%emt 0:03:21]} h4+ {[%emt 0:00:52]} 38. Kf2 {[%emt 0:00:03]} Re7 {[%emt 0:00:19]} 39. Rd4 {[%emt 0:26:39]} Kg6 {[%emt 0:00:19]} 40. Re4 {[%emt 0:00:11]} Rd7 {[%emt 0:00:29]} 41. Ke2 {[%emt 0:30:06]} Kf6 {[%emt 0:33:35]} 42. f4 {[%emt 0:01:23]} c5 {[%emt 0:00:00]} 43. f5 {[%emt 0:00:00]} cxb4 {[%emt 0:00:00]} 44. Re6+ {[%emt 0:00:00]} Kf7 {[%emt 0:00:00]} 45. cxb4 {[%emt 0:00:00]} Rc7 {[%emt 0:00:00]} 46. Kd2 {[%emt 0:00:00]} Rc4 {[%emt 0:00:00]} 47. Rb6 {[%emt 0:00:00]} Rc7 {[%emt 0:00:00]} 48. Kd3 {[%emt 0:00:00]} 1-0

[Event "Marienbad A1-GM 2024"]
[Site "Marianske Lazne"]
[Date "2024.01.19"]
[Round "8.3"]
[White "Natsidis, Christoph"]
[Black "Stefansson, Hannes"]
[Result "1/2-1/2"]
[ECO "D38"]
[WhiteElo "2324"]
[BlackElo "2498"]
[Annotator "TA"]
[PlyCount "38"]
[EventDate "2024.01.10"]
[EventType "tourn"]
[EventCountry "CZE"]
[SourceTitle "playchess.com"]
[Source "ChessBase"]
[SourceQuality "1"]
[TimeControl "40/5400+30:1800+30"]

{[%evp 21,27,22,36,26,32,16,13,25]} 1. d4 {[%emt 0:01:01]} d5 {[%emt 0:00:15]} 2. c4 {[%emt 0:00:06]} e6 {[%emt 0:00:16]} 3. Nf3 {[%emt 0:00:22]} Nf6 {[%emt 0:00:28]} 4. Nc3 {[%emt 0:00:17]} Bb4 {[%emt 0:00:41]} 5. e3 {[%emt 0:02:07]} c5 {[%emt 0:02:42]} 6. cxd5 {[%emt 0:12:38]} exd5 {[%emt 0:01:07]} 7. dxc5 {[%emt 0:10:13]} O-O {[%emt 0:01:57]} 8. Be2 {[%emt 0:00:55]} Bxc5 {[%emt 0:02:38]} 9. O-O {[%emt 0:00:54]} Nc6 {[%emt 0:01:12]} 10. b3 {[%emt 0:00:28]} a6 {[%emt 0:05:53]} 11. Bb2 {[%emt 0:07:07]} Bd6 {[%emt 0:03:54]} 12. Rc1 {[%emt 0:04:05] D32: Tarrasch Defence: Sidelines and lines without g3.} (12. Nxd5 $2 {loses.} Nxd5 13. Qd2 Be6 $19) 12... Re8 {[%emt 0:06:54]} 13. Qd3 {[%emt 0:01:24]} (13. Nxd5 $2 {is the wrong capture.} Nxd5 14. Qd2 Bb4 $19) 13... Be6 {[%emt 0:07:51]} 14. Rfd1 {[%emt 0:03:17] [#]   Weighted Error Value: White=0.13 (very precise) /Black=0.04 (flawless)} {Predecessor:} Rc8 $146 15. Bf1 Ne5 16. Nxe5 Bxe5 17. h3 Bb8 18. Qd4 Qd6 19. g3 Qd7 {1-0 Vrolijk,L (2558)-Fedorovsky,M (2395) Barcelona Sants op 24th 2023 (7)} 1/2-1/2

[Event "Marienbad A1-GM 2024"]
[Site "Marianske Lazne"]
[Date "2024.01.19"]
[Round "8.4"]
[White "Stein, Robert"]
[Black "Baenziger, Fabian"]
[Result "1/2-1/2"]
[ECO "A06"]
[WhiteElo "2429"]
[BlackElo "2414"]
[Annotator "RC"]
[PlyCount "26"]
[EventDate "2024.01.10"]
[EventType "tourn"]
[EventCountry "CZE"]
[SourceTitle "playchess.com"]
[Source "ChessBase"]
[SourceQuality "1"]
[TimeControl "40/5400+30:1800+30"]

1. Nf3 {[%emt 0:00:04]} d5 {[%emt 0:00:31]} 2. g3 {[%emt 0:00:12]} Nf6 {[%emt 0:02:22]} 3. Bg2 {[%emt 0:02:18]} e6 {[%emt 0:00:06]} 4. O-O {[%emt 0:02:38]} Be7 {[%emt 0:00:19]} 5. d4 {[%emt 0:03:15]} O-O {[%emt 0:00:23]} 6. c4 {[%emt 0:00:23]} c6 {[%emt 0:00:42]} 7. Qc2 {[%emt 0:01:29]} b6 {[%emt 0:00:54]} 8. Rd1 {[%emt 0:04:33]} Bb7 {[%emt 0:00:53]} 9. Nc3 {[%emt 0:04:42]} Nbd7 {[%emt 0:01:32]} 10. cxd5 {[%emt 0:07:59]} cxd5 {[%emt 0:00:17]} 11. Bf4 {[%emt 0:00:59]} Rc8 {[%emt 0:05:29]} 12. Qb3 {[%emt 0:06:43]} Ne8 {[%emt 0:12:10]} 13. Rac1 {[%emt 0:12:14]} Bd6 {[%emt 0:07:08]} 1/2-1/2

[Event "Marienbad A1-GM 2024"]
[Site "Marianske Lazne"]
[Date "2024.01.19"]
[Round "8.5"]
[White "Haba, Petr"]
[Black "Haring, Filip"]
[Result "1/2-1/2"]
[ECO "A40"]
[WhiteElo "2437"]
[BlackElo "2432"]
[Annotator "RC"]
[PlyCount "50"]
[EventDate "2024.01.10"]
[EventType "tourn"]
[EventCountry "CZE"]
[SourceTitle "playchess.com"]
[Source "ChessBase"]
[SourceQuality "1"]
[TimeControl "40/5400+30:1800+30"]

1. d4 {[%emt 0:00:06]} Nf6 {[%emt 0:01:00]} 2. c4 {[%emt 0:00:12]} e6 {[%emt 0:00:24]} 3. g3 {[%emt 0:00:27]} d5 {[%emt 0:00:24]} 4. Nf3 {[%emt 0:00:25]} Bb4+ {[%emt 0:00:30]} 5. Nbd2 {[%emt 0:00:30]} dxc4 {[%emt 0:02:36]} 6. Bg2 {[%emt 0:00:36]} c6 {[%emt 0:05:05]} 7. O-O {[%emt 0:02:40]} b5 {[%emt 0:00:26]} 8. b3 {[%emt 0:06:06]} cxb3 {[%emt 0:01:47]} 9. Nxb3 {[%emt 0:00:12]} Nbd7 {[%emt 0:04:46]} 10. Bd2 {[%emt 0:08:54]} Bxd2 {[%emt 0:07:25]} 11. Qxd2 {[%emt 0:00:05]} O-O {[%emt 0:00:23]} 12. Rfc1 {[%emt 0:15:35]} a5 {[%emt 0:01:25]} 13. Ne5 {[%emt 0:09:19]} Nxe5 {[%emt 0:03:50]} 14. dxe5 {[%emt 0:00:05]} Qxd2 {[%emt 0:03:36]} 15. Nxd2 {[%emt 0:00:01]} Nd5 {[%emt 0:02:10]} 16. Rxc6 {[%emt 0:02:24]} b4 {[%emt 0:07:34]} 17. Bxd5 {[%emt 0:08:55]} exd5 {[%emt 0:00:02]} 18. a3 {[%emt 0:00:22]} Rb8 {[%emt 0:06:31]} 19. axb4 {[%emt 0:00:26]} axb4 {[%emt 0:00:07]} 20. Nb3 {[%emt 0:02:44]} Re8 {[%emt 0:03:52]} 21. Ra5 {[%emt 0:17:15]} Rxe5 {[%emt 0:25:45]} 22. Rb5 {[%emt 0:04:11]} Ra8 {[%emt 0:00:04]} 23. Ra5 {[%emt 0:00:14]} Rb8 {[%emt 0:00:04]} 24. Rb5 {[%emt 0:00:04]} Ra8 {[%emt 0:00:03]} 25. Ra5 {[%emt 0:00:04]} Rb8 1/2-1/2

[Event "Marienbad A1-GM 2024"]
[Site "Marianske Lazne"]
[Date "2024.01.20"]
[Round "9.1"]
[White "Haring, Filip"]
[Black "Kusa, Jakub"]
[Result "1/2-1/2"]
[ECO "C45"]
[WhiteElo "2432"]
[BlackElo "2350"]
[Annotator "ChessBase"]
[PlyCount "41"]
[EventDate "2024.01.10"]
[EventType "tourn"]
[EventCountry "CZE"]
[SourceTitle "playchess.com"]
[Source "ChessBase"]
[SourceQuality "1"]
[TimeControl "40/5400+30:1800+30"]

1. e4 {[%emt 0:00:06]} e5 {[%emt 0:00:19]} 2. Nf3 {[%emt 0:00:12]} Nc6 {[%emt 0:00:10]} 3. d4 {[%emt 0:00:20]} exd4 {[%emt 0:00:21]} 4. Nxd4 {[%emt 0:00:06]} Nf6 {[%emt 0:00:47]} 5. Nxc6 {[%emt 0:00:07]} bxc6 {[%emt 0:00:15]} 6. e5 {[%emt 0:00:12]} Qe7 {[%emt 0:00:16]} 7. Qe2 {[%emt 0:00:05]} Nd5 {[%emt 0:00:12]} 8. h4 {[%emt 0:00:17]} d6 {[%emt 0:01:08]} 9. c4 {[%emt 0:00:11]} Nb6 {[%emt 0:00:32]} 10. exd6 {[%emt 0:00:09]} Qxe2+ {[%emt 0:00:52]} 11. Bxe2 {[%emt 0:00:08]} Bxd6 {[%emt 0:00:25]} 12. Nc3 {[%emt 0:03:59]} Be6 {[%emt 0:01:00]} 13. b3 {[%emt 0:01:54]} O-O-O {[%emt 0:00:37]} 14. Bb2 {[%emt 0:32:05]} Be5 {[%emt 0:00:22]} 15. Rd1 {[%emt 0:01:16]} Bf6 {[%emt 0:06:04]} 16. Bf3 {[%emt 0:07:19]} c5 {[%emt 0:06:10]} 17. O-O {[%emt 0:03:13]} Rxd1 {[%emt 0:03:18]} 18. Rxd1 {[%emt 0:07:02]} Rd8 {[%emt 0:01:58]} 19. Kf1 {[%emt 0:04:35]} Bf5 {[%emt 0:08:23]} 20. Rxd8+ {[%emt 0:03:14]} Kxd8 {[%emt 0:00:15]} 21. g3 {[%emt 0:10:23]} 1/2-1/2

[Event "Marienbad A1-GM 2024"]
[Site "Marianske Lazne"]
[Date "2024.01.20"]
[Round "9.2"]
[White "Baenziger, Fabian"]
[Black "Haba, Petr"]
[Result "1/2-1/2"]
[ECO "D12"]
[WhiteElo "2414"]
[BlackElo "2437"]
[Annotator "RC"]
[PlyCount "145"]
[EventDate "2024.01.10"]
[EventType "tourn"]
[EventCountry "CZE"]
[SourceTitle "playchess.com"]
[Source "ChessBase"]
[SourceQuality "1"]
[TimeControl "40/5400+30:1800+30"]

1. d4 {[%emt 0:00:04]} d5 {[%emt 0:04:19]} 2. c4 {[%emt 0:00:23]} c6 {[%emt 0:00:07]} 3. Nf3 {[%emt 0:00:28]} Nf6 {[%emt 0:00:12]} 4. e3 {[%emt 0:00:25]} Bf5 {[%emt 0:00:45]} 5. Nc3 {[%emt 0:00:14]} e6 {[%emt 0:00:13]} 6. Nh4 {[%emt 0:00:31]} Be4 {[%emt 0:00:14]} 7. f3 {[%emt 0:00:08]} Bg6 {[%emt 0:00:05]} 8. Qb3 {[%emt 0:00:19]} Qc7 {[%emt 0:00:34]} 9. Bd2 {[%emt 0:00:40]} Be7 {[%emt 0:00:12]} 10. Nxg6 {[%emt 0:00:57]} hxg6 {[%emt 0:00:05]} 11. cxd5 {[%emt 0:00:44]} Nxd5 {[%emt 0:09:35]} 12. O-O-O {[%emt 0:07:28]} a5 {[%emt 0:00:40]} 13. a3 {[%emt 0:17:11]} b5 {[%emt 0:12:53]} 14. Nxd5 {[%emt 0:06:07]} exd5 {[%emt 0:00:40]} 15. e4 {[%emt 0:00:05]} dxe4 {[%emt 0:07:16]} 16. fxe4 {[%emt 0:00:15]} Nd7 {[%emt 0:00:07]} 17. Kb1 {[%emt 0:10:09]} O-O {[%emt 0:15:30]} 18. h4 {[%emt 0:06:51]} c5 {[%emt 0:01:30]} 19. Bxb5 {[%emt 0:15:26]} cxd4 {[%emt 0:01:55]} 20. h5 {[%emt 0:04:23]} g5 {[%emt 0:00:27]} 21. h6 {[%emt 0:00:26]} g6 {[%emt 0:00:05]} 22. Qd5 {[%emt 0:00:39]} Ne5 {[%emt 0:15:33]} 23. Qxd4 {[%emt 0:04:55]} Bf6 {[%emt 0:02:20]} 24. Bc3 {[%emt 0:06:32]} Rfd8 {[%emt 0:04:06]} 25. Qf2 {[%emt 0:02:09]} Rxd1+ {[%emt 0:10:16]} 26. Rxd1 {[%emt 0:00:04]} Ng4 {[%emt 0:00:04]} 27. h7+ {[%emt 0:02:09]} Kxh7 {[%emt 0:05:20]} 28. Qf3 {[%emt 0:00:35]} Qf4 {[%emt 0:01:55]} 29. Bxf6 {[%emt 0:07:06]} Nxf6 {[%emt 0:01:13]} 30. e5 {[%emt 0:01:46]} Rb8 {[%emt 0:02:06]} 31. Qh3+ {[%emt 0:02:02]} Nh5 {[%emt 0:01:09]} 32. Qd7 {[%emt 0:02:22]} Qf5+ {[%emt 0:03:01]} 33. Qxf5 {[%emt 0:00:31]} gxf5 {[%emt 0:00:02]} 34. Bd3 {[%emt 0:00:21]} Ng3 {[%emt 0:00:03]} 35. Bc4 {[%emt 0:00:19]} Re8 {[%emt 0:02:08]} 36. Rd5 {[%emt 0:00:41]} f4 {[%emt 0:00:55]} 37. Rxa5 {[%emt 0:01:13]} Re7 {[%emt 0:00:39]} 38. Rd5 {[%emt 0:01:51]} Kg6 {[%emt 0:00:08]} 39. Bd3+ {[%emt 0:00:20]} f5 {[%emt 0:00:30]} 40. exf6+ {[%emt 0:00:23]} Kxf6 {[%emt 0:00:01]} 41. a4 {[%emt 0:04:54]} g4 {[%emt 0:03:17]} 42. a5 {[%emt 0:00:58]} f3 {[%emt 0:05:28]} 43. gxf3 {[%emt 0:00:04]} gxf3 {[%emt 0:00:02]} 44. a6 {[%emt 0:13:51]} f2 {[%emt 0:00:39]} 45. Rd8 {[%emt 0:00:34]} Kg7 {[%emt 0:09:37]} 46. Bc4 {[%emt 0:02:13]} Ne4 {[%emt 0:00:53]} 47. Rd1 {[%emt 0:08:07]} Kf6 {[%emt 0:03:15]} 48. Ka2 {[%emt 0:00:06]} Ke5 {[%emt 0:00:40]} 49. Ka3 {[%emt 0:00:25]} Kf4 {[%emt 0:03:41]} 50. Kb4 {[%emt 0:00:57]} Ke3 {[%emt 0:00:05]} 51. Rd3+ {[%emt 0:00:18]} Kf4 {[%emt 0:00:20]} 52. Rd1 {[%emt 0:00:48]} Ke3 {[%emt 0:00:02]} 53. Rd3+ {[%emt 0:03:47]} Kf4 {[%emt 0:00:02]} 54. Rd8 {[%emt 0:00:23]} Ke3 {[%emt 0:00:11]} 55. Rf8 {[%emt 0:00:34]} Nd6 {[%emt 0:00:47]} 56. Bf1 {[%emt 0:00:12]} Rc7 {[%emt 0:01:42]} 57. b3 {[%emt 0:00:31]} Ne4 {[%emt 0:03:28]} 58. Bc4 {[%emt 0:00:24]} Nd6 {[%emt 0:00:12]} 59. Bf1 {[%emt 0:00:30]} Ne4 {[%emt 0:00:01]} 60. Ka5 {[%emt 0:00:22]} Nd2 {[%emt 0:02:55]} 61. Kb6 {[%emt 0:00:05]} Rc3 {[%emt 0:00:53]} 62. a7 {[%emt 0:01:25]} Rxb3+ {[%emt 0:01:56]} 63. Bb5 {[%emt 0:00:04]} Rxb5+ {[%emt 0:00:11]} 64. Kxb5 {[%emt 0:00:04]} Nf3 {[%emt 0:00:04]} 65. Rxf3+ {[%emt 0:00:28]} Kxf3 {[%emt 0:00:01]} 66. a8=Q+ {[%emt 0:00:08]} Ke2 {[%emt 0:00:07]} 67. Qg2 {[%emt 0:01:29]} Ke1 {[%emt 0:00:07]} 68. Qe4+ {[%emt 0:00:05]} Kf1 {[%emt 0:00:59]} 69. Kc4 {[%emt 0:01:12]} Kg1 {[%emt 0:00:05]} 70. Qg4+ {[%emt 0:00:03]} Kh2 {[%emt 0:00:41]} 71. Qf3 {[%emt 0:00:04]} Kg1 {[%emt 0:00:04]} 72. Qg3+ {[%emt 0:00:03]} Kh1 {[%emt 0:00:07]} 73. Qxf2 1/2-1/2